fUST/lending_fUST_20250220
["ID","MTS","AMOUNT","RATE_DAILY","PERIOD"]
[353684585,1739988662452,-2980.14070958,0.00015589,2]
[353684587,1739988662463,-634.12930045,0.00015589,2]
[353684589,1739988662474,-703.47159546,0.00015589,2]
[353684591,1739988662485,-751.71100684,0.00015589,2]
[353684593,1739988662496,-151.0,0.000157,2]
[353684595,1739988662506,-1500.0,0.00015722,2]
[353684597,1739988662516,-1097.04980234,0.00015722,2]
[353684599,1739988662525,-465.0790012,0.0001574,2]
[353684601,1739988662536,-269.575347,0.00015775,2]
[353684603,1739988662548,-800.0,0.00015808,2]
[353684605,1739988662558,-2520.63781581,0.000159,2]
[353684607,1739988662568,-150.0,0.00016,2]
[353684609,1739988662578,-151.0,0.000161,2]
[353684611,1739988662588,-499.0,0.00016164,2]
[353684613,1739988662597,-38051.11264741,0.000162,2]
[353684615,1739988662610,-38051.11264738,0.000162,2]
[353684617,1739988662619,-38051.11264738,0.000162,2]
[353684619,1739988662629,-1000.0,0.00016438,2]
[353684621,1739988662639,-1000.0,0.00016438,2]
[353684623,1739988662650,-397.53754396,0.00016438,2]
[353684624,1739988662664,-12000.0,0.00016438,2]
[353684626,1739988662674,-151.0,0.000165,2]
[353684628,1739988662684,-1000.0,0.000165,2]
[353684630,1739988662694,-2000.0,0.0001652,2]
[353684632,1739988662703,-2000.0,0.0001652,2]
[353684634,1739988662713,-465.00395006,0.00016527,2]
[353684636,1739988662723,-38051.11264738,0.00016667,2]
[353684638,1739988662732,-572.41080386,0.00016803,2]
[353684640,1739988662742,-151.0,0.000169,2]
[353684642,1739988662752,-572.41080386,0.00016903,2]
[353684644,1739988662761,-500.0,0.00017,7]
[353684646,1739988662771,-500.0,0.00017,7]
[353684648,1739988662780,-500.0,0.00017,7]
[353684650,1739988662790,-500.0,0.00017,7]
[353684652,1739988662800,-500.0,0.00017,7]
[353684654,1739988662809,-500.0,0.00017,7]
[353684656,1739988662818,-500.0,0.00017,7]
[353684658,1739988662828,-500.0,0.00017,7]
[353684660,1739988662837,-500.0,0.00017,7]
[353684661,1739988662846,-566.69,0.00017,7]
[353684663,1739988662856,-1000.0,0.00017,2]
[353684665,1739988662869,-572.41080386,0.00017003,2]
[353684667,1739988662878,-1501.66515834,0.0001702,2]
[353684669,1739988662887,-823.0,0.00017049,2]
[353684671,1739988662896,-572.41080386,0.00017103,2]
[353684673,1739988662906,-800.0,0.00017178,2]
[353684675,1739988662915,-151.0,0.000172,2]
[353684677,1739988662924,-572.41080386,0.00017203,2]
[353684679,1739988662933,-572.41080386,0.00017303,2]
[353684681,1739988662943,-572.41080386,0.00017403,2]
[353684683,1739988662952,-572.41080386,0.00017503,2]
[353684685,1739988662962,-2500.0,0.00017584,2]
[353684687,1739988662971,-2500.0,0.00017593,2]
[353684688,1739988662981,-151.0,0.000176,2]
[353684690,1739988662991,-150.26,0.000176,2]
[353684692,1739988663001,-500.0,0.000176,2]
[353684694,1739988663011,-160.62562072,0.000176,2]
[353684696,1739988663020,-150.26,0.000176,2]
[353684698,1739988663030,-150.26,0.000176,2]
[353684700,1739988663039,-150.26,0.000176,2]
[353684702,1739988663048,-300.21963662,0.000176,2]
[353684704,1739988663058,-150.31097465,0.000176,2]
[353684706,1739988663067,-500.0,0.000176,2]
[353684708,1739988663078,-150.26,0.000176,2]
[353684710,1739988663091,-150.26,0.000176,2]
[353684712,1739988663101,-768.0,0.000176,2]
[353684714,1739988663111,-530.0,0.000176,2]
[353684716,1739988663121,-500.0,0.000176,2]
[353684718,1739988663131,-150.26,0.000176,2]
[353684720,1739988663140,-2500.0,0.00017602,2]
[353684722,1739988663150,-572.41080386,0.00017603,2]
[353684724,1739988663159,-2500.0,0.00017611,2]
[353684726,1739988663169,-2500.0,0.0001762,2]
[353684728,1739988663179,-2500.0,0.00017628,2]
[353684730,1739988663189,-2500.0,0.00017637,2]
[353684732,1739988663198,-3472.6119723,0.00017639,2]
[353684733,1739988663207,-2500.0,0.00017646,2]
[353684735,1739988663217,-13275.53870192,0.00017655,2]
[353684737,1739988663226,-572.41080386,0.00017703,2]
[353684739,1739988663235,-150.122,0.00017759,2]
[353684741,1739988663244,-187.773,0.00017759,2]
[353684743,1739988663255,-154.519,0.00017759,2]
[353684745,1739988663265,-253.439,0.00017759,2]
[353684746,1739988663275,-263.376,0.00017759,2]
[353684747,1739988663285,-1971.0,0.00017759,2]
[353684748,1739988663294,-545.771,0.00017759,2]
[353684749,1739988663304,-2288.0,0.00017759,2]
[353684750,1739988663313,-396.0,0.00017759,2]
[353684751,1739988663322,-321.0,0.0001776,2]
[353684752,1739988663332,-934.0,0.000178,2]
[353684753,1739988663341,-572.41080386,0.00017803,2]
[353684754,1739988663351,-150.26,0.00017874,2]
[353684755,1739988663360,-500.0,0.00017874,2]
[353684756,1739988663370,-150.26,0.00017874,2]
[353684757,1739988663379,-179.74264184,0.00017874,2]
[353684758,1739988663390,-150.26,0.00017874,2]
[353684759,1739988663400,-500.0,0.00017874,2]
[353684760,1739988663410,-150.26,0.00017874,2]
[353684761,1739988663420,-768.0,0.00017874,2]
[353684762,1739988663429,-530.0,0.00017874,2]
[353684763,1739988663439,-500.0,0.00017874,2]
[353684764,1739988663449,-150.26,0.00017874,2]
[353684765,1739988663458,-151.0,0.000179,2]
[353684766,1739988663468,-3000.0,0.000179,2]
[353684767,1739988663477,-2520.63781581,0.000179,2]
[353684768,1739988663487,-38051.11264738,0.000179,2]
[353684769,1739988663497,-572.41080386,0.00017903,2]
[353684770,1739988663507,-1000.0,0.00017956,2]
[353684771,1739988663517,-5000.0,0.00017963,2]
[353684772,1739988663526,-5000.0,0.00017963,2]
[353684773,1739988663536,-5000.0,0.00017963,2]
[353684774,1739988663546,-5000.0,0.00017963,2]
[353684775,1739988663555,-5000.0,0.00017963,2]
[353684776,1739988663564,-500.18961432,0.00017973,2]
[353684777,1739988663574,-500.0,0.00017973,2]
[353684778,1739988663584,-150.0,0.00017973,2]
[353684779,1739988663593,-91704.8263189,0.0001799,2]
[353684780,1739988663603,-1283.6860147,0.00017998,2]
[353684781,1739988663612,-296.30711892,0.00017998,2]
[353684782,1739988663621,-160.0,0.00017999,2]
[353684783,1739988663630,-160.0,0.00017999,2]
[353684784,1739988663640,-181331.6884842,0.00018,5]
[353684785,1739988663650,-49575.26193598,0.00018,5]
[353684786,1739988663663,-1006.50607971,0.00018,15]
[353684787,1739988663673,-1566389.97468285,0.00018,15]
[353684788,1739988663683,-652747.56490819,0.00018,15]
[353684789,1739988663704,-637.03417523,0.00018,15]
[353684790,1739988663715,-227909.70258598,0.00018,15]
[353684791,1739988663728,-1784.78430764,0.00018,15]
[353684792,1739988663740,-3727.77999999,0.00018,15]
[353684793,1739988663903,-500.0,0.00013698,2]
[353684794,1739988663913,-500.0,0.00013698,2]
[353684796,1739988663923,-1896.88913757,0.00013932,2]
[353684798,1739988663934,-258.27520198,0.00014216,2]
[353684800,1739988663944,-6862.38890907,0.00018,15]
[353684802,1739988663954,-388307.97294953,0.00018,15]
[353684805,1739988663967,-4306.27207122,0.00018,15]
[353684806,1739988663984,-2651.56199528,0.00018,15]
[353684807,1739988663996,-527.25999992,0.00018,15]
[353684808,1739988664194,-1756.41,0.00013698,2]
[353684809,1739988664204,-500.0,0.0001378,2]
[353684810,1739988664214,-482.57163269,0.00013863,2]
[353684811,1739988664226,-17.42836731,0.00013863,2]
[353684812,1739988664235,-248.24,0.00013945,2]
[353684813,1739988664245,-84055.99185217,0.00018,15]
[353684814,1739988664257,-83396.89658517,0.00018,15]
[353684815,1739988664269,-2374.24007974,0.00018,15]
[353684822,1739988828821,256.77241,9.041e-05,2]
[353684857,1739989715425,1050.37210985,0.0001814,90]
[353684901,1739989831735,-300.0,0.00012456,2]
[353684903,1739989831743,-12172.41916209,0.00012457,2]
[353684905,1739989831755,-12727.58083791,0.00012457,2]
[353684907,1739989831764,-1662.6969675,0.00012694,2]
[353684909,1739989831772,-700.0,0.00013068,2]
[353684911,1739989831781,-815.83773672,0.00013188,3]
[353684912,1739989831790,-272.84824011,0.00013276,2]
[353684914,1739989831797,-255.87273352,0.00013598,2]
[353684916,1739989831807,-420.0,0.00013668,2]
[353684918,1739989831815,-488.30544433,0.00013697,2]
[353684919,1739989831822,-500.0,0.00013698,2]
[353684920,1739989831831,-489.85443509,0.00013698,2]
[353684921,1739989831840,-500.0,0.00013698,2]
[353684922,1739989831848,-500.0,0.00013698,2]
[353684923,1739989831856,-500.0,0.00013698,2]
[353684924,1739989831866,-500.0,0.00013698,2]
[353684925,1739989831872,-230.77651089,0.00013698,2]
[353684926,1739989831881,-500.0,0.00013698,2]
[353684927,1739989831888,-500.0,0.00013698,2]
[353684928,1739989831897,-156.31810125,0.00013698,2]
[353684929,1739989831927,-500.0,0.00013275,2]
[353684930,1739989831934,-343.68189875,0.00013698,2]
[353684931,1739989831941,-502.06124481,0.00013698,2]
[353684932,1739989831948,-500.0,0.00013698,2]
[353684933,1739989831955,-500.0,0.00013698,2]
[353684935,1739989831962,-500.0,0.00013698,2]
[353684936,1739989831969,-503.43145638,0.00013698,2]
[353684938,1739989831975,-500.0,0.00013698,2]
[353684939,1739989831983,-500.0,0.00013698,2]
[353684941,1739989831989,-500.0,0.00013698,2]
[353684943,1739989831996,-500.0,0.00013698,2]
[353684944,1739989832003,-501.57901468,0.00013698,2]
[353684946,1739989832012,-500.0,0.00013698,2]
[353684948,1739989832020,-500.0,0.00013698,2]
[353684950,1739989832028,-500.0,0.00013698,2]
[353684952,1739989832036,-501.36503709,0.00013698,2]
[353684954,1739989832046,-500.0,0.00013698,2]
[353684956,1739989832058,-500.0,0.00013698,2]
[353684957,1739989832065,-391.08089984,0.00013698,2]
[353684959,1739989832074,-22.5108574,0.00013698,2]
[353685018,1739989837645,-478.68088663,0.00013698,2]
[353685020,1739989837655,-500.0,0.00013698,2]
[353685022,1739989837664,-500.0,0.00013698,2]
[353685024,1739989837674,-281.78678542,0.00013698,2]
[353685026,1739989837683,-346.69931981,0.00013698,2]
[353685028,1739989837693,-500.0,0.00013698,2]
[353685030,1739989837702,-500.0,0.00013698,2]
[353685032,1739989837711,-500.0,0.00013698,2]
[353685034,1739989837720,-500.0,0.00013698,2]
[353685036,1739989837730,-500.0,0.00013698,2]
[353685038,1739989837739,-500.0,0.00013698,2]
[353685040,1739989837748,-501.23553447,0.00013698,2]
[353685042,1739989837758,-103.9332308,0.00013698,2]
[353685044,1739989837770,-396.0667692,0.00013698,2]
[353685047,1739989837781,-500.0,0.00013698,2]
[353685049,1739989837791,-500.0,0.00013698,2]
[353685050,1739989837800,-206.1710476,0.00013698,2]
[353685052,1739989837812,-293.8289524,0.00013698,2]
[353685054,1739989837822,-500.96566589,0.00013698,2]
[353685056,1739989837831,-500.0,0.00013698,2]
[353685058,1739989837841,-505.43319536,0.00013698,2]
[353685072,1739989837850,-500.0,0.00013698,2]
[353685074,1739989837970,-500.0,0.00013698,2]
[353685076,1739989837980,-500.0,0.00013698,2]
[353685078,1739989837989,-500.0,0.00013698,2]
[353685080,1739989837999,-285.08607143,0.00013698,2]
[353685082,1739989838008,-500.0,0.00013698,2]
[353685084,1739989838017,-500.0,0.00013698,2]
[353685086,1739989838026,-500.0,0.00013698,2]
[353685088,1739989838036,-234.09065981,0.00013698,2]
[353685090,1739989838046,-500.0,0.00013698,2]
[353685092,1739989838059,-500.0,0.00013698,2]
[353685093,1739989838069,-500.0,0.00013698,2]
[353685095,1739989838080,-500.0,0.00013698,2]
[353685097,1739989838090,-500.0,0.00013698,2]
[353685099,1739989838101,-500.0,0.00013698,2]
[353685101,1739989838112,-500.0,0.00013698,2]
[353685103,1739989838121,-500.0,0.00013698,5]
[353685105,1739989838134,-500.0,0.00013698,2]
[353685107,1739989838144,-500.0,0.00013698,2]
[353685109,1739989838154,-500.0,0.00013698,2]
[353685111,1739989838163,-500.0,0.00013698,2]
[353685113,1739989838173,-500.0,0.00013698,2]
[353685115,1739989838182,-501.71580436,0.00013698,2]
[353685117,1739989838191,-500.0,0.00013698,2]
[353685119,1739989838201,-500.0,0.00013698,2]
[353685121,1739989838210,-500.0,0.00013698,2]
[353685123,1739989838221,-500.0,0.00013698,2]
[353685125,1739989838231,-500.0,0.00013698,2]
[353685127,1739989838240,-500.0,0.00013698,2]
[353685128,1739989838249,-500.0,0.00013698,2]
[353685129,1739989838259,-500.0,0.00013698,2]
[353685130,1739989838268,-500.0,0.00013698,2]
[353685132,1739989838278,-500.0,0.00013698,2]
[353685134,1739989838287,-500.0,0.00013698,2]
[353685136,1739989838297,-500.0,0.00013698,2]
[353685137,1739989838306,-500.0,0.00013698,2]
[353685138,1739989838316,-500.0,0.00013698,2]
[353685140,1739989838325,-500.0,0.00013698,2]
[353685142,1739989838334,-500.0,0.00013698,2]
[353685144,1739989838344,-500.0,0.00013698,2]
[353685147,1739989838353,-501.01976374,0.00013698,2]
[353685149,1739989838365,-500.0,0.00013698,2]
[353685151,1739989838375,-500.0,0.00013698,2]
[353685153,1739989838384,-500.0,0.00013698,2]
[353685154,1739989838393,-500.0,0.00013698,2]
[353685157,1739989838403,-561.76444651,0.00013698,2]
[353685159,1739989838412,-503.43455033,0.00013698,2]
[353685160,1739989838421,-500.0,0.00013698,2]
[353685162,1739989838431,-500.0,0.00013698,2]
[353685165,1739989838440,-500.0,0.00013698,2]
[353685167,1739989838450,-506.71201923,0.00013698,2]
[353685169,1739989838460,-500.0,0.00013698,2]
[353685171,1739989838469,-500.0,0.00013698,2]
[353685173,1739989838479,-500.0,0.00013698,2]
[353685175,1739989838488,-500.0,0.00013698,2]
[353685177,1739989838497,-500.0,0.00013698,2]
[353685179,1739989838507,-500.0,0.00013698,2]
[353685181,1739989838516,-500.0,0.00013698,2]
[353685183,1739989838525,-1097.18,0.00013698,2]
[353685185,1739989838535,-500.0,0.00013698,2]
[353685187,1739989838544,-500.0,0.00013698,2]
[353685189,1739989838554,-500.0,0.00013698,2]
[353685191,1739989838563,-500.0,0.00013698,2]
[353685193,1739989838572,-500.0,0.00013698,2]
[353685195,1739989838582,-500.0,0.00013698,2]
[353685196,1739989838591,-500.0,0.00013698,2]
[353685199,1739989838601,-500.0,0.00013698,2]
[353685200,1739989838611,-481.33276006,0.00013698,2]
[353685202,1739989838620,-500.0,0.00013698,2]
[353685204,1739989838629,-500.0,0.00013698,2]
[353685207,1739989838639,-500.0,0.00013698,2]
[353685208,1739989838649,-500.0,0.00013698,2]
[353685210,1739989838658,-500.0,0.00013698,2]
[353685212,1739989838667,-500.0,0.00013698,2]
[353685215,1739989838676,-500.0,0.00013698,2]
[353685216,1739989838685,-500.0,0.00013698,2]
[353685218,1739989838695,-500.0,0.00013698,2]
[353685221,1739989838704,-500.0,0.00013698,2]
[353685222,1739989838713,-500.0,0.00013698,2]
[353685224,1739989838723,-500.0,0.00013698,2]
[353685227,1739989838733,-500.0,0.00013698,2]
[353685228,1739989838742,-505.78158092,0.00013698,2]
[353685231,1739989838752,-500.0,0.00013698,2]
[353685233,1739989838761,-500.0,0.00013698,2]
[353685234,1739989838771,-500.0,0.00013698,2]
[353685236,1739989838780,-500.0,0.00013698,2]
[353685238,1739989838790,-500.0,0.00013698,2]
[353685240,1739989838799,-500.0,0.00013698,2]
[353685242,1739989838810,-500.0,0.00013698,2]
[353685245,1739989838820,-500.0,0.00013698,2]
[353685247,1739989838830,-500.0,0.00013698,2]
[353685248,1739989838840,-500.0,0.00013698,2]
[353685251,1739989838849,-570.67,0.00013698,2]
[353685253,1739989838859,-576.57,0.00013698,2]
[353685254,1739989838868,-500.0,0.00013698,2]
[353685256,1739989838878,-500.0,0.00013698,2]
[353685259,1739989838887,-370.0349384,0.00013698,2]
[353685261,1739989838897,-500.0,0.00013698,2]
[353685262,1739989838907,-500.0,0.00013698,2]
[353685264,1739989838916,-1264.09,0.00013698,2]
[353685266,1739989838926,-5751.66,0.00013698,2]
[353685268,1739989838935,-500.0,0.00013698,2]
[353685270,1739989838945,-500.0,0.00013698,2]
[353685272,1739989838954,-1024.64,0.00013698,2]
[353685274,1739989838964,-500.0,0.00013698,2]
[353685276,1739989838973,-500.0,0.00013698,2]
[353685278,1739989838982,-500.0,0.00013698,2]
[353685280,1739989838992,-500.0,0.00013698,2]
[353685282,1739989839001,-500.0,0.00013698,2]
[353685284,1739989839010,-500.0,0.00013698,2]
[353685286,1739989839020,-500.0,0.00013698,2]
[353685288,1739989839029,-500.0,0.00013698,2]
[353685290,1739989839039,-500.0,0.00013698,2]
[353685292,1739989839049,-500.0,0.00013698,2]
[353685294,1739989839064,-500.0,0.00013698,2]
[353685296,1739989839073,-500.0,0.00013698,2]
[353685298,1739989839082,-500.0,0.00013698,2]
[353685300,1739989839092,-500.0,0.00013698,2]
[353685302,1739989839104,-500.0,0.00013698,2]
[353685304,1739989839116,-500.0,0.00013698,2]
[353685306,1739989839126,-500.0,0.00013698,2]
[353685309,1739989839136,-500.0,0.00013698,2]
[353685311,1739989839146,-500.0,0.00013698,2]
[353685312,1739989839155,-500.0,0.00013698,2]
[353685315,1739989839165,-500.0,0.00013698,2]
[353685317,1739989839175,-746.15,0.00013698,2]
[353685319,1739989839184,-498.5,0.00013698,2]
[353685321,1739989839194,-500.0,0.00013698,2]
[353685323,1739989839204,-500.0,0.00013698,2]
[353685325,1739989839214,-222.056359,0.00013699,2]
[353685327,1739989839224,-161.077185,0.00013699,2]
[353685329,1739989839234,-500.0,0.00013699,2]
[353685331,1739989839244,-500.0,0.00013699,2]
[353685333,1739989839253,-500.0,0.00013699,2]
[353685335,1739989839263,-500.0,0.00013699,2]
[353685337,1739989839272,-500.0,0.00013699,2]
[353685339,1739989839282,-319.59123836,0.00013699,2]
[353685341,1739989839291,-381.94097134,0.0001378,2]
[353685343,1739989839300,-500.0,0.0001378,2]
[353685345,1739989839310,-500.0,0.0001378,2]
[353685347,1739989839320,-500.0,0.0001378,2]
[353685349,1739989839329,-500.0,0.0001378,2]
[353685350,1739989839339,-500.0,0.0001378,2]
[353685353,1739989839348,-500.0,0.0001378,2]
[353685354,1739989839359,-500.0,0.0001378,2]
[353685356,1739989839368,-500.0,0.0001378,2]
[353685358,1739989839378,-500.0,0.0001378,2]
[353685360,1739989839387,-500.0,0.0001378,2]
[353685362,1739989839396,-500.0,0.0001378,2]
[353685364,1739989839405,-500.98362518,0.0001378,2]
[353685366,1739989839415,-501.93634187,0.0001378,2]
[353685368,1739989839425,-440.05178992,0.0001378,2]
[353685370,1739989839434,-500.0,0.0001378,2]
[353685372,1739989839443,-500.0,0.0001378,2]
[353685374,1739989839453,-500.0,0.0001378,2]
[353685376,1739989839463,-503.25407185,0.0001378,2]
[353685378,1739989839472,-500.0,0.0001378,2]
[353685380,1739989839482,-500.0,0.0001378,2]
[353685382,1739989839491,-500.0,0.0001378,2]
[353685384,1739989839501,-500.0,0.0001378,2]
[353685386,1739989839510,-500.0,0.0001378,2]
[353685388,1739989839520,-212.3,0.0001378,2]
[353685390,1739989839529,-500.0,0.0001378,2]
[353685392,1739989839539,-500.0,0.0001378,2]
[353685394,1739989839548,-500.0,0.0001378,2]
[353685396,1739989839557,-500.0,0.0001378,2]
[353685399,1739989839567,-500.0,0.0001378,2]
[353685400,1739989839577,-500.0,0.0001378,2]
[353685402,1739989839586,-500.0,0.0001378,2]
[353685405,1739989839595,-500.0,0.0001378,2]
[353685406,1739989839605,-500.0,0.0001378,2]
[353685408,1739989839617,-500.0,0.0001378,2]
[353685411,1739989839626,-500.0,0.0001378,2]
[353685412,1739989839636,-500.0,0.0001378,2]
[353685415,1739989839647,-500.0,0.0001378,2]
[353685417,1739989839656,-500.0,0.0001378,2]
[353685419,1739989839666,-500.0,0.0001378,2]
[353685421,1739989839676,-500.0,0.0001378,2]
[353685423,1739989839685,-500.0,0.0001378,2]
[353685425,1739989839695,-500.0,0.0001378,2]
[353685426,1739989839704,-500.0,0.0001378,2]
[353685429,1739989839714,-500.0,0.0001378,2]
[353685430,1739989839725,-500.0,0.0001378,2]
[353685432,1739989839734,-1097.18,0.0001378,2]
[353685434,1739989839743,-500.0,0.0001378,2]
[353685437,1739989839753,-500.0,0.0001378,2]
[353685438,1739989839762,-500.0,0.0001378,2]
[353685441,1739989839773,-500.0,0.0001378,2]
[353685442,1739989839783,-500.0,0.0001378,2]
[353685445,1739989839793,-500.0,0.0001378,2]
[353685447,1739989839803,-500.0,0.0001378,2]
[353685449,1739989839812,-500.0,0.0001378,2]
[353685450,1739989839822,-500.0,0.0001378,2]
[353685452,1739989839832,-613.65884181,0.0001378,2]
[353685454,1739989839842,-500.0,0.0001378,2]
[353685456,1739989839852,-491.26987979,0.0001378,2]
[353685458,1739989839863,-500.0,0.0001378,2]
[353685461,1739989839874,-500.0,0.0001378,2]
[353685463,1739989839883,-500.0,0.0001378,2]
[353685465,1739989839893,-500.0,0.0001378,2]
[353685467,1739989839903,-500.0,0.0001378,2]
[353685469,1739989839913,-279.25486826,0.0001378,2]
[353685471,1739989839922,-1264.09,0.0001378,2]
[353685473,1739989839932,-5751.66,0.0001378,2]
[353685475,1739989839942,-500.0,0.0001378,2]
[353685477,1739989839951,-500.0,0.0001378,2]
[353685479,1739989839960,-1024.64,0.0001378,2]
[353685481,1739989839970,-500.0,0.0001378,2]
[353685483,1739989839979,-500.0,0.0001378,2]
[353685485,1739989839989,-500.0,0.0001378,2]
[353685487,1739989839998,-500.0,0.0001378,2]
[353685489,1739989840007,-500.0,0.0001378,2]
[353685491,1739989840018,-439.71079483,0.0001378,2]
[353685493,1739989840028,-500.0,0.0001378,2]
[353685495,1739989840038,-377.69806669,0.0001378,2]
[353685497,1739989840048,-500.0,0.0001378,2]
[353685499,1739989840063,-500.0,0.0001378,2]
[353685501,1739989840073,-500.0,0.0001378,2]
[353685503,1739989840083,-500.0,0.0001378,2]
[353685505,1739989840094,-500.0,0.0001378,2]
[353685508,1739989840103,-500.0,0.0001378,2]
[353685510,1739989840115,-500.0,0.0001378,2]
[353685512,1739989840124,-500.0,0.0001378,2]
[353685514,1739989840135,-500.0,0.0001378,2]
[353685516,1739989840145,-500.0,0.0001378,2]
[353685518,1739989840155,-746.15,0.0001378,2]
[353685520,1739989840163,-500.0,0.0001378,2]
[353685522,1739989840173,-152.0,0.00013813,2]
[353685524,1739989840182,-500.0,0.00013863,2]
[353685526,1739989840191,-500.0,0.00013863,2]
[353685528,1739989840201,-505.47745752,0.00013863,2]
[353685530,1739989840210,-500.0,0.00013863,2]
[353685532,1739989840219,-500.0,0.00013863,2]
[353685534,1739989840228,-500.0,0.00013863,2]
[353685536,1739989840238,-500.0,0.00013863,2]
[353685538,1739989840248,-500.0,0.00013863,2]
[353685540,1739989840257,-500.0,0.00013863,2]
[353685542,1739989840267,-500.0,0.00013863,2]
[353685544,1739989840277,-500.0,0.00013863,2]
[353685546,1739989840286,-500.0,0.00013863,2]
[353685548,1739989840296,-500.0,0.00013863,2]
[353685550,1739989840306,-304.07,0.00013863,2]
[353685552,1739989840315,-314.47,0.00013863,2]
[353685554,1739989840325,-500.0,0.00013863,2]
[353685556,1739989840334,-500.0,0.00013863,2]
[353685558,1739989840343,-500.0,0.00013863,2]
[353685560,1739989840352,-500.0,0.00013863,2]
[353685562,1739989840364,-500.0,0.00013863,2]
[353685564,1739989840373,-500.0,0.00013863,2]
[353685566,1739989840383,-500.0,0.00013863,2]
[353685568,1739989840393,-500.0,0.00013863,2]
[353685570,1739989840403,-500.0,0.00013863,2]
[353685572,1739989840413,-500.0,0.00013863,2]
[353685574,1739989840423,-500.0,0.00013863,2]
[353685576,1739989840433,-500.0,0.00013863,2]
[353685578,1739989840443,-500.0,0.00013863,2]
[353685580,1739989840453,-500.0,0.00013863,2]
[353685582,1739989840462,-500.0,0.00013863,2]
[353685584,1739989840472,-500.0,0.00013863,2]
[353685586,1739989840481,-500.0,0.00013863,2]
[353685588,1739989840490,-500.0,0.00013863,2]
[353685590,1739989840499,-1097.18,0.00013863,2]
[353685592,1739989840508,-500.0,0.00013863,2]
[353685594,1739989840517,-500.0,0.00013863,2]
[353685596,1739989840527,-485.75,0.00013863,2]
[353685598,1739989840536,-500.0,0.00013863,2]
[353685600,1739989840545,-500.0,0.00013863,2]
[353685602,1739989840555,-500.0,0.00013863,2]
[353685604,1739989840564,-500.0,0.00013863,2]
[353685606,1739989840574,-500.0,0.00013863,2]
[353685608,1739989840584,-500.0,0.00013863,2]
[353685610,1739989840594,-500.0,0.00013863,2]
[353685612,1739989840604,-500.0,0.00013863,2]
[353685614,1739989840617,-500.0,0.00013863,2]
[353685627,1739989840731,-1264.09,0.00013863,2]
[353685629,1739989840741,-5751.66,0.00013863,2]
[353685631,1739989840751,-500.0,0.00013863,2]
[353685633,1739989840760,-500.0,0.00013863,2]
[353685634,1739989840770,-1024.64,0.00013863,2]
[353685635,1739989840779,-500.0,0.00013863,2]
[353685636,1739989840789,-500.0,0.00013863,2]
[353685637,1739989840798,-500.0,0.00013863,2]
[353685638,1739989840808,-500.0,0.00013863,2]
[353685639,1739989840818,-500.0,0.00013863,2]
[353685640,1739989840827,-500.0,0.00013863,2]
[353685641,1739989840837,-500.0,0.00013863,2]
[353685642,1739989840847,-500.0,0.00013863,2]
[353685643,1739989840856,-500.0,0.00013863,2]
[353685644,1739989840866,-500.0,0.00013863,2]
[353685645,1739989840875,-500.0,0.00013863,2]